Cogmind - Beta 15 @@@ ROGUE MODE // 2025.09.08 @ 16:43:04 Player: Raisen Result: Self-destructed Performance ------------- Evolutions (1) 500 Regions Visited (2) 400 Robots Destroyed (21) 105 Value Destroyed (578) 578 Prototype IDs (4) 80 Alien Tech Used (0) 0 Bonus (200) 200 TOTAL SCORE: 1863 Bonus ------- Pacifist 200 Cogmind --------- Core Integrity 341/400 Matter 280/300 Energy 265/265 System Corruption 0% Temperature Warm (194) Movement Walking (120) Location -9/Materials Parts ------- > --- POWER (1) -------- Improved Ion Engine > --- PROPULSION (4) --- Aluminum Leg Aluminum Leg Aluminum Leg Improved Aluminum Leg > --- UTILITY (2) ------ Large Storage Unit Signal Interpreter > --- WEAPON (2) ------- Ion Cannon Ion Cannon > --- INVENTORY (15) --- Ion Engine Ion Engine Ion Engine Light Nuclear Core Light Nuclear Core Light Nuclear Core Aluminum Leg Heat Sink Visual Processing Unit Light Armor Plating Ion Cannon Heavy Assault Rifle Heavy Assault Rifle Heavy Assault Rifle Shotgun Peak State ------------ > --- POWER ------------ Improved Ion Engine > --- PROPULSION ------- Aluminum Leg Aluminum Leg Aluminum Leg Improved Aluminum Leg > --- UTILITY ---------- Large Storage Unit Signal Interpreter > --- WEAPON ----------- Ion Cannon Ion Cannon > --- INVENTORY -------- Ion Engine Ion Engine Ion Engine Light Nuclear Core Light Nuclear Core Light Nuclear Core Aluminum Leg Heat Sink Visual Processing Unit Light Armor Plating Ion Cannon Heavy Assault Rifle Heavy Assault Rifle Heavy Assault Rifle Shotgun [Rating: 17] Favorites ----------- Power Ion Engine Engine Ion Engine Propulsion Aluminum Leg Leg Aluminum Leg Utility Large Storage Unit Storage Large Storage Unit Processor Signal Interpreter Weapon Assault Rifle Energy Cannon Ion Cannon Ballistic Gun Assault Rifle Build | -11 -10 -9 ------- Run | Yrd Mat Mat Slots Evolved 2 | . . 2 Power . | . . . Propulsion 2 | . . 2 Utility . | . . . Weapon . | . . . Parts Attached 21 | 5 2 14 Power 2 | 1 . 1 Engine 2 | 1 . 1 Core . | . . . Reactor . | . . . Propulsion 10 | 2 . 8 Treads . | . . . Leg 10 | 2 . 8 Wheel . | . . . Hover . | . . . Flight . | . . . Utility 3 | 1 2 . Device . | . . . Storage 2 | 1 1 . Processor 1 | . 1 . Hackware . | . . . Protection . | . . . Artifact . | . . . Weapon 6 | 1 . 5 Energy Gun . | . . . Energy Cannon 3 | . . 3 Ballistic Gun 3 | 1 . 2 Ballistic Cannon . | . . . Launcher . | . . . Special Weapon . | . . . Impact Weapon . | . . . Slashing Weapon . | . . . Piercing Weapon . | . . . Special Melee Weapon . | . . . Unidentified Prototypes . | . . . Parts Lost 1 | . . 1 Power . | . . . Propulsion . | . . . Utility . | . . . Weapon 1 | . . 1 Highest Loss Streak 1 | . . 1 To Critical Strikes . | . . . Average Backups 7 | 1 3 9 Power 3 | . 1 3 Propulsion 2 | . 2 2 Utility . | . . 1 Weapon 1 | . . 2 Tool/Special . | . . . Unused Backups 15 | 1 . 14 Power 5 | . . 5 Propulsion 2 | . . 2 Utility 4 | . . 4 Weapon 4 | 1 . 3 Tool/Special . | . . . Average Slot Usage (%) 83 | . 80 84 Engine 11 | . 14 11 Leg 33 | . 28 34 Storage 13 | . 20 11 Processor 9 | . 3 11 Energy Cannon 6 | . . 8 Ballistic Gun 8 | . 14 7 Peak Build Rating 17 | 5 6 17 Average Rating 9 | 3 5 11 On Entrance 3 | . 5 6 Naked Turns . | . . . Heaviest Build 39 | 12 32 39 Greatest Support 43 | 20 20 43 Greatest Overweight (x) 1 | . 1 1 Average Overweight (x) . | . . . Largest Inventory Capacity 15 | 8 15 15 Average Capacity 14 | 6 13 15 Most Carried 15 | 3 4 15 Average Carried 8 | 1 3 9 Final Capacity 15 | 8 15 15 Final Carried 15 | 3 4 15 Class Distribution -------------------- 72% | Mutant 27% | Scavenger-Mutant Dominant Class ---------------- Mutant | -10/Materials Mutant | -9/Materials Resources | -11 -10 -9 ----------- Run | Yrd Mat Mat Matter Collected 501 | 216 . 285 Remotely . | . . . Salvage Created 977 | . . 977 Parts 52 | . . 52 Haulers Intercepted . | . . . Recyclers Shooed . | . . . Parts Field Recycled . | . . . Retrieved Matter . | . . . Parts Self-Destructed . | . . . Prevented . | . . . Kills | -11 -10 -9 ------- Run | Yrd Mat Mat Combat Hostiles Destroyed 14 | . . 14 Guns 4 | . . 4 Cannons 10 | . . 10 Classes Destroyed 7 | . . 7 Worker 2 | . . 2 Recycler 4 | . . 4 Watcher 1 | . . 1 Grunt 8 | . . 8 Brawler 2 | . . 2 Duelist 1 | . . 1 Sentry 3 | . . 3 Best Kill Streak 5 | . . 5 Combat Bots Only 4 | . . 4 Max Kills in Single Turn 1 | . . 1 Gunslinging . | . . . Exploded . | . . . Melee . | . . . Uniques/NPCs Destroyed . | . . . Combat | -11 -10 -9 -------- Run | Yrd Mat Mat Hostile Shots Fired 65 | . . 65 Missed 15 | . . 15 Hits 50 | . . 50 Melee 3 | . . 3 Projectile 47 | . . 47 Critical Strikes 2 | . . 2 Damage Taken 625 | . . 625 Core 59 | . . 59 Absorbed by Shields . | . . . Core Remaining (%) 100 | 100 100 . Volleys Fired 69 | . . 69 Largest 2 | . . 2 Hottest 120 | . . 120 Shots Fired 112 | . . 112 Gun 37 | . . 37 Cannon 75 | . . 75 Launcher . | . . . Special . | . . . Kinetic 37 | . . 37 Thermal 75 | . . 75 Explosive . | . . . Electromagnetic . | . . . Robot Hit Streak 13 | . . 13 Robot Miss Streak 6 | . . 6 Penetration Max . | . . . Secondary Targets . | . . . Shots Hit Robots 65 | . . 65 Core Hits 25 | . . 25 Critical Kills . | . . . Critical Parts Destroyed . | . . . Critical Strikes . | . . . Melee Attacks . | . . . Impact . | . . . Slashing . | . . . Piercing . | . . . Sneak Attacks . | . . . Combat Hostiles . | . . . Follow-up Attacks . | . . . Damage Inflicted 1292 | . . 1292 Guns 375 | . . 375 Cannons 917 | . . 917 Explosions . | . . . Melee . | . . . Ramming . | . . . Kinetic 375 | . . 375 Thermal 917 | . . 917 Explosive . | . . . Electromagnetic . | . . . Impact . | . . . Slashing . | . . . Piercing . | . . . Highest Corruption . | . . . Average Corruption . | . . . Corruption Purged . | . . . Corruption Blocked . | . . . Overload Shots . | . . . Overflow Damage 35 | . . 35 Projectiles 35 | . . 35 Explosions . | . . . Melee . | . . . Knockbacks . | . . . Impact . | . . . Kinetic . | . . . Secondary . | . . . Self-Inflicted Damage . | . . . Shots . | . . . Rammed . | . . . Targets Rammed . | . . . Kicked . | . . . Crushed . | . . . Highest Temperature 434 | . . 434 Average Temperature 150 | . . 150 Received Heat Transfer 285 | . . 285 Effects 3 | . . 3 Shutdowns 1 | . . 1 Interference 2 | . . 2 Siege Activations . | . . . Martial Activations . | . . . Shielding Activations . | . . . Robots Disrupted . | . . . Combat Hostiles . | . . . Robots Corrupted . | . . . Combat Hostiles . | . . . Parts Fried . | . . . Impact Corruptions . | . . . Robots Melted . | . . . Combat Hostiles . | . . . Parts Melted 2 | . . 2 Heat Transferred 1480 | . . 1480 Parts Sabotaged . | . . . Parts Stolen . | . . . Parts Stripped . | . . . Power Chain Reactions . | . . . Alert | -11 -10 -9 ------- Run | Yrd Mat Mat Maximum Alert Level 1 | . . 1 Low Security (%) 84 | 100 100 78 Level 1 15 | . . 21 Level 2 . | . . . Level 3 . | . . . Level 4 . | . . . Level 5 . | . . . High Security . | . . . Max Security . | . . . Peak Influence 246 | . 5 246 Initial . | . . . Average 66 | . . 90 Influence Increases 459 | . 5 454 Destroy 0b10 Robot/C 280 | . . 280 Destroy 0b10 Robot/NC 35 | . . 35 Destroy Leader 72 | . . 72 Successful Hack 22 | . 5 17 Disable Machine 15 | . . 15 Destroy Structure 5 | . . 5 Lose Combat Pursuer 30 | . . 30 Influence Decreases 242 | . 5 237 Time Decay 232 | . 5 227 Lost Part 10 | . . 10 Squads Dispatched 2 | . . 2 Investigation . | . . . Extermination . | . . . Reinforcement 2 | . . 2 Assault . | . . . Garrison . | . . . Intercept . | . . . Searches Triggered . | . . . Construction Impeded . | . . . Haulers Reinforced . | . . . Active Scanning Responses . | . . . Cargo Convoy Interrupts . | . . . Stealth | -11 -10 -9 --------- Run | Yrd Mat Mat Distress Signals 1 | . . 1 Communications Jammed . | . . . Distress Signals . | . . . Times Spotted 19 | . . 19 Peak Tracking Total 5 | . . 5 Tactical Retreats 1 | . . 1 Traps | -11 -10 -9 ------- Run | Yrd Mat Mat Traps Triggered . | . . . Indirectly . | . . . Trap Hack Attempts . | . . . Triggered . | . . . Disarmed . | . . . Reprogrammed . | . . . Reused . | . . . Traps Extracted . | . . . Installed . | . . . Triggered . | . . . Machines | -11 -10 -9 ---------- Run | Yrd Mat Mat Machines Disabled 1 | . . 1 Max in Single Turn 1 | . . 1 Machines Repaired . | . . . Machines Dismantled . | . . . Machines Sabotaged . | . . . Overloaded Fab Kills . | . . . Hacking | -11 -10 -9 --------- Run | Yrd Mat Mat Machines Accessed 6 | . 2 4 Terminals 6 | . 2 4 Fabricators . | . . . Repair Stations . | . . . Recycling Units . | . . . Scanalyzers . | . . . Garrison Access . | . . . Total Hacks 14 | . 4 10 Successful 7 | . 1 6 Failed 7 | . 3 4 Catastrophic 1 | . . 1 Database Lockouts . | . . . Manual 3 | . 2 1 Terminals 14 | . 4 10 Fabricators . | . . . Repair Stations . | . . . Recycling Units . | . . . Scanalyzers . | . . . Garrison Access . | . . . Terminal Hacks 7 | . 1 6 Prototype ID Bank 2 | . . 2 Alert Level 2 | . . 2 Patrol Status 1 | . . 1 Zone Layout 2 | . 1 1 Fabricator Hacks . | . . . Repair Station Hacks . | . . . Recycling Unit Hacks . | . . . Scanalyzer . | . . . Garrison Access Hacks . | . . . Unauthorized Hacks . | . . . Terminals . | . . . Fabricators . | . . . Repair Stations . | . . . Recycling Units . | . . . Scanalyzers . | . . . Garrison Access . | . . . Data Cores Recovered . | . . . Used . | . . . Hacking Detections 6 | . 2 4 Full Trace Events 1 | . . 1 Feedback Events . | . . . Feedback Blocked . | . . . Robot Schematics Acquired . | . . . Robots Built . | . . . Authchips . | . . . Time . | . . . Total Robot Build Rating . | . . . Part Schematics Acquired . | . . . Parts Built . | . . . Authchips . | . . . Time . | . . . Total Part Build Rating . | . . . Parts Repaired . | . . . Time . | . . . Parts Recycled . | . . . Recycled Matter . | . . . Retrieved Matter . | . . . Retrieved Components . | . . . Parts Scanalyzed . | . . . Part Schematics Acquired . | . . . Parts Damaged . | . . . Bothacking | -11 -10 -9 ------------ Run | Yrd Mat Mat Used RIF Installer . | . . . Robots Hacked . | . . . Non-combat . | . . . Combat . | . . . Robot Hacks Applied . | . . . Relay Couplers Released . | . . . Fabnet Peak Effective % . | . . . Robots Rewired . | . . . Allies Hacked . | . . . Hacks Repelled . | . . . Allies | -11 -10 -9 -------- Run | Yrd Mat Mat Total Allies . | . . . Largest Group . | . . . Highest-Rated Group . | . . . Highest-Rated Ally . | . . . Total Orders . | . . . Ally Attacks . | . . . Total Damage . | . . . Kills . | . . . Allies Corrupted . | . . . Allies Melted . | . . . Intel | -11 -10 -9 ------- Run | Yrd Mat Mat Active Infowar (turns) . | . . . Robot Analysis Total . | . . . Derelict Logs Recovered . | . . . Drone Launches . | . . . Drone Recoveries . | . . . Exploration | -11 -10 -9 ------------- Run | Yrd Mat Mat Turns Passed 932 | 57 189 686 Spaces Moved 466 | 43 110 313 Core 11 | 11 . . Treads . | . . . Legs 455 | 32 110 313 Wheels . | . . . Hover . | . . . Flight . | . . . Fastest Speed 50 | 50 120 120 Average Speed 147 | 102 169 146 Slowest Speed 190 | 120 190 190 Overloaded Moves . | . . . Propulsion Burnouts . | . . . Robots Hopped . | . . . Potential Cave-ins . | . . . Cave-ins Triggered . | . . . Exploration Rate (%) 16 | 3 22 23 Regions Visited 2 Branch Regions . Pre-discovered Areas . | . . . Known Exits Taken 1 | . 1 . Unknown Exits Taken 1 | 1 . . Scrap Searched . | . . . Spaces Dug . | . . . Terrain Destroyed 5 | . . 5 Melee . | . . . Projectile 5 | . . 5 AOE . | . . . Terrain Rammed . | . . . Walls Destroyed . | . . . Machines Disabled . | . . . Actions | -11 -10 -9 --------- Run | Yrd Mat Mat Total 601 | 55 113 433 Wait 12 | . . 12 Move 464 | 42 109 313 Hop . | . . . Pick Up 23 | 7 1 15 Fast Attach 7 | 2 2 3 Attach 7 | 3 . 4 Detach 2 | . . 2 Swap 7 | . . 7 Drop 10 | 1 1 8 Fire 69 | . . 69 Melee . | . . . Ram . | . . . Kick . | . . . Crush . | . . . Escape Stasis . | . . . Rewire . | . . . Trap . | . . . Miscellaneous . | . . . Route ------- -11/Scrapyard -10/Materials -9/Materials (discovered 1 exit: *Min) History --------- Turn | Location | Event 7 | -11/Scrapyard | Discovered new exit (range 15) 58 | -11/Scrapyard | Entered Materials 161 | -10/Materials | Discovered new exit (range 15) 243 | -10/Materials | Identified exit to Materials 247 | -10/Materials | Entered another Materials area 247 | -9/Materials | Evolved 2 slots: Propulsion x2 247 | -9/Materials | Discovered new exit (range 14) 306 | -9/Materials | Build established: Mutant 308 | -9/Materials | Identified exit to Mines 933 | -9/Materials | Self-destructed Last Messages --------------- Current Alert Level: 1-F 00872_ Acquired Hvy. Assault Rifle. 00877_ Dropped Assault Rifle. 00877_ Acquired Shotgun. 00888_ K-01 Serf collects debris. 00905_ Connecting with Terminal... >>Prototypes Downloading prototype IDs... Adv. Beam Cannon Hvy. EM Shotgun >>Alert(Check) Current Alert Level: 1-D 00906_ K-01 Serf collects debris. 00909_ O-16 Technician: "IFF HANDSHAKE FAILED. SECURING TERMINAL." 00910_ K-01 Serf collects debris. 00914_ Destroyed Hover Unit. 00914_ K-01 Serf destroyed. 00919_ ALERT: Hostiles spotted, dispatching reinforcements to Terminal M002. Map ----- +----------------------------------------------------+ | | | | | | | | | | | | | | | | | | | | | | | | | | | | | ?????????????????????????????????????????????????? | | ?????????????????????????????????????????????????? | | ?????????????????????????????????????????????????? | | ?????????????????????????????????????????????????? | | ?????????????????????????????????????????????????? | | ?????????????????????????????????????????????????? | | ?????????????????????????????????????????????????? | | ?????????????????????###+###?????????????????????? | | ???????????+##;####### #?????????????????????? | | ?????????? #?????????????????????? | | ?????????? T #?????????????????????? | | ?????????? g @ #?????????????????????? | | ????????????????###### #?????????????????????? | | ????????????????# [ ### ##?????????????????????? | | ????????????????#[ #?# ##?????????????????????? | | ????????????????# #?# "#?????????????????????? | | ????????????????# " ### T#?????????????????????? | | ????????????????# T ##= "#?????????????????????? | | ????????????????# " ### ##?????????????????????? | | ????????????????# ###%% ##?????????????????????? | | ???????###########+###=[% ###+####??????????????? | | ???????# = %=% = [! ????????? | | ???????# = * !![ %* ????????? | | ???????# *= =%==%! %= % ????????? | | ???????# =%########### ############T?????????? | | ########=%=# ######+####????????????????????? | | #! %# # %* #????????????????????? | | """ # =!+ # "%""""" #????????????????????? | | """"" # !%# # """"""" #????????????????????? | | """"" + ![# # """"""" #????????????????????? | | """"" #*%!# # """"""" #????????????????????? | | """ ### # # """"""" #????????????????????? | | #?# # # #????????????????????? | | #?# # # #????????????????????? | | ########?# # ###+#######????????????????????? | | % #### # #?# #??????????????????????????? | +----------------------------------------------------+ Best States ------------- Heat Dissipation 28 Energy Generation 12 Energy Capacity 265 Matter Stores 300 Matter Capacity 300 Sight Range 16 Terrain Scan Density 10 Evasion (%) 55 Item Schematics ----------------- None Robot Schematics ------------------ None Fabricated ------------ Nothing Repaired ---------- Nothing Alien Tech Used ----------------- None Achievements -------------- None Challenges ------------ None Game ------ Seed NeutronTowerFlightbrick Manual? 0 Play Time 00:09:33 Cumulative 9.4 hours Start 2025.09.08 @ 01:20:05 End 2025.09.08 @ 16:43:04 Sessions 1 Manual Loads 0 Difficulty Rogue Special Mode None Game No. 17 Rogue 17 Adventurer 0 Explorer 0 Win Type - Total 0 Types 0/0/0/0/0/0/0/0/0/0 Lore% 5 Gallery% 14 Achievement% 19 Wizard Run 0 Options --------- Layout 1 ASCII 0 Keyboard 0 Movement Mouse Keybinds 0 Fullscreen 2 Font 24/Smallcaps Map View 50x35 Zoom Use 0% Tactical HUD 1 Map Filters NONE Filters NONE Steam 1 RUN: df2b44e8-2c0f-4169-8fb5-56e9b6e8d556